Cogmind - Beta 12 @@@ ROGUE MODE // 2024.01.22 @ 00:31:37 Player: puppuppit Result: Destroyed by G-47 Trooper with Particle Gun Performance ------------- Evolutions (0) 0 Regions Visited (1) 200 Robots Destroyed (20) 100 Value Destroyed (419) 419 Prototype IDs (5) 100 Alien Tech Used (0) 0 Bonus (0) 0 TOTAL SCORE: 819 Bonus ------- None Cogmind --------- Core Integrity 0/250 Matter 300/300 Energy 98/100 System Corruption 0% Temperature Cool (84) Movement Core (150) Ox2 Location -10/Materials Parts ------- > --- POWER (1) -------- (None) > --- PROPULSION (2) --- (None) > --- UTILITY (2) ------ Small Storage Unit Improved Terrain Scanner > --- WEAPON (2) ------- Small Laser > --- INVENTORY (8) ---- Medium Matter Pod (100) Tractor Beam Grenade Launcher Peak State ------------ > --- POWER ------------ Light Ion Engine > --- PROPULSION ------- Wheel Wheel > --- UTILITY ---------- Small Storage Unit Improved Terrain Scanner > --- WEAPON ----------- Small Laser Light Assault Rifle > --- INVENTORY -------- Ion Engine Wheel Wheel Compact Wheel Compact Wheel Compact Wheel Improved Terrain Scanner Tractor Beam [Rating: 10] Favorites ----------- Power Light Ion Engine Engine Light Ion Engine Propulsion Wheel Wheel Wheel Utility Small Storage Unit Device Improved Terrain Scanner Storage Small Storage Unit Weapon Small Laser Energy Gun Small Laser Ballistic Gun Light Assault Rifle Build | -11 -10 ------- Run | Jun Mat Slots Evolved . | . . Power . | . . Propulsion . | . . Utility . | . . Weapon . | . . Parts Attached 20 | 10 10 Power 3 | 1 2 Engine 3 | 1 2 Core . | . . Reactor . | . . Propulsion 11 | 4 7 Treads . | . . Leg . | . . Wheel 11 | 4 7 Hover . | . . Flight . | . . Utility 4 | 3 1 Device 3 | 2 1 Storage 1 | 1 . Processor . | . . Hackware . | . . Protection . | . . Artifact . | . . Weapon 2 | 2 . Energy Gun 1 | 1 . Energy Cannon . | . . Ballistic Gun 1 | 1 . Ballistic Cannon . | . . Launcher . | . . Special Weapon . | . . Impact Weapon . | . . Slashing Weapon . | . . Piercing Weapon . | . . Special Melee Weapon . | . . Unidentified Prototypes . | . . Parts Lost 8 | . 8 Power 2 | . 2 Propulsion 5 | . 5 Utility . | . . Weapon 1 | . 1 Highest Loss Streak 7 | . 7 To Critical Strikes . | . . Average Slot Usage (%) 97 | . 97 Engine 13 | . 13 Wheel 26 | . 26 Device 14 | . 14 Storage 14 | . 14 Energy Gun 14 | . 14 Ballistic Gun 13 | . 13 Naked Turns . | . . Heaviest Build 11 | 11 11 Greatest Support 32 | 32 20 Greatest Overweight (x) 1 | . 1 Average Overweight (x) . | . . Largest Inventory Capacity 8 | 8 8 Average Capacity 7 | 7 8 Most Carried 8 | 8 8 Average Carried 5 | 2 6 Final Capacity 8 | 8 8 Final Carried 8 | 8 3 Class Distribution -------------------- 65% | Scavenger-Mutant 34% | Mutant Dominant Class ---------------- Scavenger-Mutant | -10/Materials Resources | -11 -10 ----------- Run | Jun Mat Matter Collected 534 | 373 161 Remotely 105 | 105 . Salvage Created 660 | 198 462 Parts 44 | 16 28 Haulers Intercepted . | . . Recyclers Shooed . | . . Parts Field Recycled . | . . Retrieved Matter . | . . Parts Self-Destructed . | . . Prevented . | . . Kills | -11 -10 ------- Run | Jun Mat Combat Hostiles Destroyed 13 | . 13 Guns 13 | . 13 Classes Destroyed 5 | 3 2 Worker 2 | 2 . Tunneler 4 | 4 . Recycler 1 | 1 . Swarmer 3 | . 3 Grunt 10 | . 10 Best Kill Streak 6 | 4 6 Combat Bots Only 6 | . 6 Max Kills in Single Turn 1 | 1 1 Gunslinging . | . . Exploded . | . . Melee . | . . Uniques/NPCs Destroyed . | . . Combat | -11 -10 -------- Run | Jun Mat Damage Taken 726 | . 726 Core 254 | . 254 Absorbed by Shields . | . . Core Remaining (%) 100 | 100 . Volleys Fired 68 | 23 45 Largest 2 | 2 2 Hottest 60 | 60 60 Shots Fired 128 | 43 85 Gun 128 | 43 85 Cannon . | . . Launcher . | . . Special . | . . Kinetic 63 | 23 40 Thermal 65 | 20 45 Explosive . | . . Electromagnetic . | . . Robot Hit Streak 14 | 5 14 Robot Miss Streak 3 | 1 3 Penetration Max . | . . Secondary Targets 2 | . 2 Max Gunslinging Chain 1 | . 1 Shots Hit Robots 88 | 28 60 Core Hits 40 | 12 28 Critical Kills 1 | 1 . Critical Parts Destroyed . | . . Critical Strikes 1 | 1 . Destroy 1 | 1 . Melee Attacks . | . . Impact . | . . Slashing . | . . Piercing . | . . Sneak Attacks . | . . Combat Hostiles . | . . Follow-up Attacks . | . . Damage Inflicted 871 | 265 606 Guns 871 | 265 606 Cannons . | . . Explosions . | . . Melee . | . . Ramming . | . . Kinetic 391 | 121 270 Thermal 480 | 144 336 Explosive . | . . Electromagnetic . | . . Impact . | . . Slashing . | . . Piercing . | . . Highest Corruption . | . . Average Corruption . | . . Corruption Purged . | . . Corruption Blocked . | . . Overload Shots . | . . Overflow Damage . | . . Projectiles . | . . Explosions . | . . Melee . | . . Knockbacks . | . . Impact . | . . Kinetic . | . . Secondary . | . . Self-Inflicted Damage . | . . Shots . | . . Rammed . | . . Targets Rammed . | . . Kicked . | . . Crushed . | . . Highest Temperature 84 | 60 84 Average Temperature 34 | 31 35 Received Heat Transfer 375 | . 375 Siege Activations . | . . Robots Corrupted . | . . Combat Hostiles . | . . Parts Fried . | . . Impact Corruptions . | . . Robots Melted . | . . Combat Hostiles . | . . Parts Melted . | . . Heat Transferred 1100 | 325 775 Parts Sabotaged . | . . Parts Stolen . | . . Parts Stripped . | . . Power Chain Reactions . | . . Missiles Intercepted . | . . Alert | -11 -10 ------- Run | Jun Mat Peak Influence 359 | 35 359 Initial 22 | . 22 Average 154 | 15 204 Maximum Alert Level 1 | . 1 Low Security (%) 65 | 100 52 Level 1 34 | . 47 Level 2 . | . . Level 3 . | . . Level 4 . | . . Level 5 . | . . High Security . | . . Max Security . | . . Squads Dispatched 2 | . 2 Investigation 2 | . 2 Extermination . | . . Reinforcement . | . . Assault . | . . Garrison . | . . Intercept . | . . Searches Triggered . | . . Construction Impeded . | . . Haulers Reinforced . | . . Active Scanning Responses . | . . Cargo Convoy Interrupts . | . . Stealth | -11 -10 --------- Run | Jun Mat Distress Signals . | . . Communications Jammed . | . . Distress Signals . | . . Times Spotted 18 | . 18 Peak Tracking Total 5 | . 5 Tactical Retreats . | . . Traps | -11 -10 ------- Run | Jun Mat Traps Triggered 1 | . 1 Indirectly . | . . Trap Hack Attempts . | . . Triggered . | . . Disarmed 6 | . 6 Reprogrammed 1 | . 1 Reused . | . . Traps Extracted . | . . Installed . | . . Triggered . | . . Machines | -11 -10 ---------- Run | Jun Mat Machines Disabled . | . . Max in Single Turn . | . . Machines Repaired . | . . Machines Sabotaged . | . . Overloaded Fab Kills . | . . Hacking | -11 -10 --------- Run | Jun Mat Machines Accessed 8 | . 8 Terminals 7 | . 7 Fabricators . | . . Repair Stations 1 | . 1 Recycling Units . | . . Scanalyzers . | . . Garrison Access . | . . Total Hacks 26 | . 26 Successful 13 | . 13 Failed 13 | . 13 Catastrophic 3 | . 3 Database Lockouts . | . . Manual 6 | . 6 Terminals 24 | . 24 Fabricators . | . . Repair Stations 2 | . 2 Recycling Units . | . . Scanalyzers . | . . Garrison Access . | . . Terminal Hacks 13 | . 13 Robot Analysis 2 | . 2 Prototype ID Bank 4 | . 4 Branch Access Points 1 | . 1 Emergency Access Points 1 | . 1 Recycling Unit Index 1 | . 1 Locate Traps 1 | . 1 Disarm Traps 1 | . 1 Reprogram Traps 1 | . 1 Zone Layout 1 | . 1 Fabricator Hacks . | . . Repair Station Hacks . | . . Recycling Unit Hacks . | . . Scanalyzer . | . . Garrison Access Hacks . | . . Unauthorized Hacks . | . . Terminals . | . . Fabricators . | . . Repair Stations . | . . Recycling Units . | . . Scanalyzers . | . . Garrison Access . | . . Data Cores Recovered . | . . Used . | . . Hacking Detections 8 | . 8 Full Trace Events 4 | . 4 Feedback Events . | . . Feedback Blocked . | . . Robot Schematics Acquired . | . . Robots Built . | . . Authchips . | . . Time . | . . Total Robot Build Rating . | . . Part Schematics Acquired . | . . Parts Built . | . . Authchips . | . . Time . | . . Total Part Build Rating . | . . Parts Repaired . | . . Time . | . . Parts Recycled . | . . Recycled Matter . | . . Retrieved Matter . | . . Retrieved Components . | . . Parts Scanalyzed . | . . Part Schematics Acquired . | . . Parts Damaged . | . . Bothacking | -11 -10 ------------ Run | Jun Mat Used RIF Installer . | . . Robots Hacked . | . . Non-combat . | . . Combat . | . . Robot Hacks Applied . | . . Relay Couplers Released . | . . Fabnet Peak Effective % . | . . Robots Rewired . | . . Allies Hacked . | . . Hacks Repelled . | . . Allies | -11 -10 -------- Run | Jun Mat Total Allies . | . . Largest Group . | . . Highest-Rated Group . | . . Highest-Rated Ally . | . . Total Orders . | . . Ally Attacks . | . . Total Damage . | . . Kills . | . . Allies Corrupted . | . . Allies Melted . | . . Intel | -11 -10 ------- Run | Jun Mat Robot Analysis Total 2 | . 2 Derelict Logs Recovered . | . . Drone Launches . | . . Drone Recoveries . | . . Exploration | -11 -10 ------------- Run | Jun Mat Turns Passed 539 | 144 395 Spaces Moved 356 | 65 291 Core 1 | 1 . Treads . | . . Legs . | . . Wheels 355 | 64 291 Hover . | . . Flight . | . . Fastest Speed 50 | 50 80 Average Speed 82 | 92 80 Slowest Speed 100 | 100 95 Overloaded Moves . | . . Propulsion Burnouts . | . . Robots Hopped . | . . Cave-ins Triggered . | . . Exploration Rate (%) 30 | 4 56 Regions Visited 1 Branch Regions . Pre-discovered Areas . | . . Known Exits Taken . | . . Unknown Exits Taken 1 | 1 . Scrap Searched . | . . Spaces Dug . | . . Terrain Destroyed . | . . Melee . | . . Projectile . | . . AOE . | . . Terrain Rammed . | . . Walls Destroyed . | . . Machines Disabled . | . . Actions | -11 -10 --------- Run | Jun Mat Total 483 | 107 376 Wait 24 | . 24 Move 355 | 64 291 Hop . | . . Pick Up 8 | 7 1 Fast Attach 10 | 8 2 Attach 4 | . 4 Detach 1 | 1 . Swap 6 | 2 4 Drop 7 | 2 5 Fire 68 | 23 45 Melee . | . . Ram . | . . Kick . | . . Crush . | . . Escape Stasis . | . . Rewire . | . . Trap . | . . Miscellaneous . | . . Route ------- -11/Junkyard -10/Materials (discovered 2 exits: [*Mat] / Min) History --------- Turn | Location | Event 22 | -11/Junkyard | Discovered new exit (range 16) 145 | -11/Junkyard | Entered Materials 256 | -10/Materials | Identified exit to Mines 454 | -10/Materials | Discovered new exit (range 8) 490 | -10/Materials | Build established: Scavenger-Mutant 495 | -10/Materials | Core integrity fell below 50% 536 | -10/Materials | Core integrity fell below 20% 540 | -10/Materials | Destroyed by G-47 Trooper with Particle Gun Last Messages --------------- 00481_ K-01 Serf cleans the Terminal. 00492_ Wheel destroyed. 00498_ G-47 Trooper destroyed. 00498_ Switching to secondary target: G-47 Trooper. 00500_ Wheel destroyed. 00502_ Acquired 24 matter. 00506_ Connecting with Terminal... >>Prototypes Downloading prototype IDs... Cld. Ion Engine Hvy. Ion Engine >>Traps(Disarm) Disarmed 6 Shock Traps. 00506_ K-01 Serf collects debris. 00525_ Wheel destroyed. 00527_ G-34 Mercenary destroyed. 00528_ Lgt. Assault Rifle destroyed. 00532_ Wheel destroyed. 00537_ Lgt. Ion Engine destroyed. 00538_ Com. Wheel destroyed. Map ----- +----------------------------------------------------+ | | | | | | | | | | | | | | | | | | | | | | | | | | | | | | | | | | | | | ?#??#?????#??????????????????????????? | | ???????#?????#?#?????????????????????? | | ????????????#??????#??????????? ?????? | | ?????#??################?????? ?????? | | ????????# #????? ??????? | | ????????# ##### ???????? | | ????#???# g + ????????? | | ????????# @g= #?????????? | | ????????####### "" !!! #?????????? | | ??????????????# "T !!! #??????? ?? | | ????#?????????# "" !! ##+###????? | | ??????????????# ! ?? | | ??????????????# ! ?? | | ?????????? ???######%#### ?? | | ??????????>???######+####?? ??? | | ??????#??? ???# ! ==[ #???? ??? | | ?????## ??????# / ? ?? | | ??????## ## """ # ######????? | | ???#???## ### """"" ## #??#??????? | | ????????# #?# """"" ## #?????????? | | ????????# #?# """"" ## #???? ????? | | ????????# #?# """ ## #?????????? | | ???????## ### ## #?????????? | | ???????# ##+########## #?????????? | | ???????# #?# ##????????? | | ???????# ###+###???????? | | ???????# # ???????? | | ???????# ##!!! # ???????? | | ???????########!! # ???????? | | ??????????????#!! + ???????? | | ???????????#??# ! # ???????? | | ?????????????## # ???????? | +----------------------------------------------------+ Best States ------------- Heat Dissipation 25 Energy Generation 10 Energy Capacity 125 Matter Stores 300 Matter Capacity 300 Sight Range 16 Terrain Scan Range 16 Terrain Scan Density 10 Evasion (%) 44 Item Schematics ----------------- None Robot Schematics ------------------ None Fabricated ------------ Nothing Alien Tech Used ----------------- None Achievements -------------- None Challenges ------------ None Game ------ Seed ArmoredSmartbombInsulator Manual? 0 Play Time 00:08:24 Cumulative 76.5 hours Start 2024.01.22 @ 00:23:29 End 2024.01.22 @ 00:31:37 Sessions 1 Manual Loads 0 Difficulty Rogue Special Mode None Game No. 48 Rogue 48 Adventurer 0 Explorer 0 Win Type - Total 0 Types 0/0/0/0/0/0/0/0/0 Lore% 55 Gallery% 53 Achievement% 44 Wizard Run 0 Options --------- ASCII 0 Keyboard 1 Movement Arrows Keybinds 0 Fullscreen 1 Font 12/Proggy Map View 83x54 Tactical HUD 1 Map Filters NONE Filters NONE Steam 0 RUN: c95b4113-eb1f-4bb4-b2b4-c0344b5f35c0